Cogmind - Beta 14 @@@ ROGUE MODE // 2024.12.04 @ 18:01:13 Player: hanna Result: Destroyed by B-75 Beast with Heavy Plasma Cannon Performance ------------- Evolutions (1) 500 Regions Visited (6) 1200 Robots Destroyed (16) 80 Value Destroyed (601) 601 Prototype IDs (3) 60 Alien Tech Used (0) 0 Bonus (0) 0 TOTAL SCORE: 2441 Bonus ------- None Cogmind --------- Core Integrity 0/400 Matter 252/300 Energy 78/150 System Corruption 5% Temperature Hot (297) Movement Core (300) Ox5 Location -6/Proximity Caves Parts ------- > --- POWER (1) -------- Micro Nuclear Core > --- PROPULSION (2) --- (None) > --- UTILITY (4) ------ (None) > --- WEAPON (2) ------- Ion Cannon Coil Gun > --- INVENTORY (5) ---- Improved EM Shotgun Improved EM Pulse Cannon Peak State ------------ > --- POWER ------------ Micro Nuclear Core > --- PROPULSION ------- Light Treads Light Treads > --- UTILITY ---------- Small Storage Unit Hardened Medium Armor Plating Phasing AFG > --- WEAPON ----------- RU-N14's Throwing Claymores RU-N14's Throwing Claymores > --- INVENTORY -------- Light Ion Engine Neutrino Core Light Treads Light Treads Improved EM Shotgun Ion Cannon Ion Cannon Ion Cannon [Rating: 39] Favorites ----------- Power Light Deuterium Engine Engine Light Deuterium Engine Power Core Micro Nuclear Core Propulsion Light Treads Treads Light Treads Utility Small Storage Unit Device Phasing AFG Storage Small Storage Unit Protection Hardened Medium Armor Plating Weapon RU-N14's Throwing Claymores Energy Gun Improved EM Shotgun Energy Cannon Ion Cannon Ballistic Gun Assault Rifle Special Weapon RU-N14's Throwing Claymores Build | -11 -10 -10 -9 -9 -7 -6 ------- Run | Yrd Mat Min Mat Min Zio Pro Slots Evolved 2 | . . . 2 . . . Power . | . . . . . . . Propulsion . | . . . . . . . Utility 2 | . . . 2 . . . Weapon . | . . . . . . . Parts Attached 34 | 7 1 . 7 . 5 14 Power 5 | 1 . . . . 1 3 Engine 2 | 1 . . . . 1 . Core 3 | . . . . . . 3 Reactor . | . . . . . . . Propulsion 7 | 2 . . 1 . . 4 Treads 7 | 2 . . 1 . . 4 Leg . | . . . . . . . Wheel . | . . . . . . . Hover . | . . . . . . . Flight . | . . . . . . . Utility 6 | 1 1 . 2 . 1 1 Device 3 | . . . 1 . 1 1 Storage 2 | 1 1 . . . . . Processor . | . . . . . . . Hackware . | . . . . . . . Protection 1 | . . . 1 . . . Artifact . | . . . . . . . Weapon 16 | 3 . . 4 . 3 6 Energy Gun 4 | 1 . . 2 . 1 . Energy Cannon 6 | . . . 2 . . 4 Ballistic Gun 4 | 2 . . . . . 2 Ballistic Cannon . | . . . . . . . Launcher . | . . . . . . . Special Weapon 2 | . . . . . 2 . Impact Weapon . | . . . . . . . Slashing Weapon . | . . . . . . . Piercing Weapon . | . . . . . . . Special Melee Weapon . | . . . . . . . Unidentified Prototypes 3 | . . . 1 . 2 . Parts Lost 12 | . . . . . . 12 Power 1 | . . . . . . 1 Propulsion 4 | . . . . . . 4 Utility 5 | . . . . . . 5 Weapon 2 | . . . . . . 2 Highest Loss Streak 6 | . . . . . . 6 To Critical Strikes . | . . . . . . . Average Slot Usage (%) 92 | . 93 100 98 100 100 84 Engine 9 | . 14 14 11 11 11 6 Core 2 | . . . . . . 5 Treads 22 | . 28 28 22 22 22 21 Device 9 | . . . 10 11 11 11 Storage 18 | . 22 28 22 22 22 13 Protection 7 | . . . 10 11 11 7 Energy Gun 5 | . . . 11 22 14 . Energy Cannon 2 | . . . 10 . . 2 Ballistic Gun 4 | . 28 28 . . . 2 Special Weapon 8 | . . . . . 7 13 Peak Build Rating 39 | 6 7 7 16 16 38 39 Average Rating 26 | 4 6 7 15 16 29 33 On Entrance 12 | . 6 7 7 16 16 38 Naked Turns . | . . . . . . . Heaviest Build 56 | 11 13 13 31 25 56 56 Greatest Support 40 | 40 40 40 40 40 40 40 Greatest Overweight (x) 5 | . . . . . 1 5 Average Overweight (x) . | . . . . . . . Largest Inventory Capacity 8 | 8 8 8 8 8 8 8 Average Capacity 7 | 7 8 8 8 8 8 7 Most Carried 8 | 2 4 4 8 8 8 8 Average Carried 5 | . 2 4 6 8 7 5 Final Capacity 8 | 8 8 8 8 8 8 5 Final Carried 8 | 1 4 4 8 8 7 2 Class Distribution -------------------- 100% | Mutant Dominant Class ---------------- Mutant | -10/Materials Mutant | -10/Mines Mutant | -9/Materials Mutant | -9/Mines Mutant | -7/Zion Mutant | -6/Proximity Caves Resources | -11 -10 -10 -9 -9 -7 -6 ----------- Run | Yrd Mat Min Mat Min Zio Pro Matter Collected 637 | 136 128 . 113 30 . 230 Remotely . | . . . . . . . Salvage Created 544 | . 128 . 154 . . 262 Parts 30 | . 14 . 11 . . 5 Haulers Intercepted . | . . . . . . . Recyclers Shooed . | . . . . . . . Parts Field Recycled . | . . . . . . . Retrieved Matter . | . . . . . . . Parts Self-Destructed 2 | . . . . . . 2 Prevented . | . . . . . . . Kills | -11 -10 -10 -9 -9 -7 -6 ------- Run | Yrd Mat Min Mat Min Zio Pro Combat Hostiles Destroyed 14 | . 4 . 2 . . 8 Guns 4 | . 4 . . . . . Cannons 4 | . . . 2 . . 2 AOE 6 | . . . . . . 6 Classes Destroyed 7 | . 3 . 2 . . 2 Recycler 1 | . . . 1 . . . Watcher 1 | . 1 . . . . . Swarmer 3 | . 3 . . . . . Grunt 7 | . 1 . . . . 6 Brawler 1 | . . . . . . 1 Sentry 2 | . . . 2 . . . Programmer 1 | . . . . . . 1 Best Kill Streak 4 | . 3 . 3 . . 4 Combat Bots Only 4 | . 3 . 2 . . 4 Max Kills in Single Turn 3 | . 1 . 1 . . 3 Gunslinging . | . . . . . . . Exploded 3 | . . . . . . 3 Melee . | . . . . . . . Uniques/NPCs Destroyed . | . . . . . . . Combat | -11 -10 -10 -9 -9 -7 -6 -------- Run | Yrd Mat Min Mat Min Zio Pro Hostile Shots Fired 145 | . 19 . 6 . . 120 Missed 42 | . 3 . 2 . . 37 Damage Taken 2203 | . 137 . 57 . . 2009 Core 409 | . . . . . . 409 Absorbed by Shields . | . . . . . . . Core Remaining (%) 100 | 100 . 100 . . . . Volleys Fired 45 | . 11 4 6 . . 24 Largest 2 | . 2 2 2 . . 2 Hottest 120 | . 40 40 120 . . 120 Shots Fired 82 | . 22 8 12 . . 40 Gun 39 | . 22 8 . . . 9 Cannon 34 | . . . 12 . . 22 Launcher . | . . . . . . . Special 9 | . . . . . . 9 Kinetic 39 | . 22 8 . . . 9 Thermal 34 | . . . 12 . . 22 Explosive 9 | . . . . . . 9 Electromagnetic . | . . . . . . . Robot Hit Streak 9 | . 4 3 8 . . 9 Robot Miss Streak 7 | . 2 2 1 . . 7 Penetration Max . | . . . . . . . Secondary Targets 2 | . 2 . . . . . Max Gunslinging Chain 1 | . 1 . . . . . Shots Hit Robots 52 | . 14 4 9 . . 25 Core Hits 26 | . 8 1 3 . . 14 Critical Kills . | . . . . . . . Critical Parts Destroyed 1 | . . . . . . 1 Critical Strikes 3 | . . . . . . 3 Destroy 1 | . . . . . . 1 Sever 2 | . . . . . . 2 Melee Attacks . | . . . . . . . Impact . | . . . . . . . Slashing . | . . . . . . . Piercing . | . . . . . . . Sneak Attacks . | . . . . . . . Combat Hostiles . | . . . . . . . Follow-up Attacks . | . . . . . . . Damage Inflicted 2497 | . 137 45 206 . . 2109 Guns 320 | . 136 45 . . . 139 Cannons 630 | . . . 206 . . 424 Explosions 1306 | . . . . . . 1306 Melee . | . . . . . . . Ramming 1 | . 1 . . . . . Kinetic 320 | . 136 45 . . . 139 Thermal 630 | . . . 206 . . 424 Explosive 1306 | . . . . . . 1306 Electromagnetic . | . . . . . . . Impact . | . . . . . . . Slashing 240 | . . . . . . 240 Piercing . | . . . . . . . Highest Corruption 5 | . . . . . . 5 Average Corruption 5 | . . . . . . 5 Corruption Purged . | . . . . . . . Corruption Blocked . | . . . . . . . Effects 13 | . . . . . . 13 Message Errors 1 | . . . . . . 1 Matter Fused 2 | . . . . . . 2 Energy Discharges 4 | . . . . . . 4 Parts Rejected 2 | . . . . . . 2 Parts Fused 1 | . . . . . . 1 Data Loss (minor) 1 | . . . . . . 1 Weapon Failures 2 | . . . . . . 2 Overload Shots . | . . . . . . . Overflow Damage 45 | . . . 5 . . 40 Projectiles 5 | . . . 5 . . . Explosions 40 | . . . . . . 40 Melee . | . . . . . . . Knockbacks . | . . . . . . . Impact . | . . . . . . . Kinetic . | . . . . . . . Secondary . | . . . . . . . Self-Inflicted Damage . | . . . . . . . Shots . | . . . . . . . Rammed 2 | . 1 . . . . 1 Targets Rammed 2 | . 1 . . . . 1 Kicked . | . . . . . . . Crushed . | . . . . . . . Highest Temperature 725 | . 6 . 117 . . 725 Average Temperature 211 | . 6 . 47 . . 263 Received Heat Transfer 633 | . 12 . 9 . . 612 Effects 16 | . . . . . . 16 Shutdowns 2 | . . . . . . 2 Energy Bleed 1 | . . . . . . 1 Interference 1 | . . . . . . 1 Matter Decay 2 | . . . . . . 2 Damage (minor) 2 | . . . . . . 2 Damage (major) 7 | . . . . . . 7 Damage (core) 1 | . . . . . . 1 Siege Activations . | . . . . . . . Robots Corrupted . | . . . . . . . Combat Hostiles . | . . . . . . . Parts Fried . | . . . . . . . Impact Corruptions . | . . . . . . . Robots Melted . | . . . . . . . Combat Hostiles . | . . . . . . . Parts Melted 1 | . . . 1 . . . Heat Transferred 962 | . . . 333 . . 629 Parts Sabotaged . | . . . . . . . Parts Stolen . | . . . . . . . Parts Stripped . | . . . . . . . Power Chain Reactions . | . . . . . . . Alert | -11 -10 -10 -9 -9 -7 -6 ------- Run | Yrd Mat Min Mat Min Zio Pro Peak Influence 107 | . 107 41 97 37 . . Initial 41 | . . 41 15 37 . . Average 53 | . 62 41 68 37 . . Maximum Alert Level . | . . . . . . . Low Security (%) 100 | 100 100 100 100 100 . . Level 1 . | . . . . . . . Level 2 . | . . . . . . . Level 3 . | . . . . . . . Level 4 . | . . . . . . . Level 5 . | . . . . . . . High Security . | . . . . . . . Max Security . | . . . . . . . Squads Dispatched 1 | . 1 . . . . . Investigation . | . . . . . . . Extermination . | . . . . . . . Reinforcement 1 | . 1 . . . . . Assault . | . . . . . . . Garrison . | . . . . . . . Intercept . | . . . . . . . Searches Triggered . | . . . . . . . Construction Impeded . | . . . . . . . Haulers Reinforced . | . . . . . . . Active Scanning Responses . | . . . . . . . Cargo Convoy Interrupts . | . . . . . . . Stealth | -11 -10 -10 -9 -9 -7 -6 --------- Run | Yrd Mat Min Mat Min Zio Pro Distress Signals . | . . . . . . . Communications Jammed . | . . . . . . . Distress Signals . | . . . . . . . Times Spotted 19 | . 7 . 2 . . 10 Peak Tracking Total 4 | . 3 . 4 . . 4 Tactical Retreats 1 | . . . . . . 1 Traps | -11 -10 -10 -9 -9 -7 -6 ------- Run | Yrd Mat Min Mat Min Zio Pro Traps Triggered . | . . . . . . . Indirectly . | . . . . . . . Trap Hack Attempts . | . . . . . . . Triggered . | . . . . . . . Disarmed . | . . . . . . . Reprogrammed . | . . . . . . . Reused . | . . . . . . . Traps Extracted . | . . . . . . . Installed . | . . . . . . . Triggered . | . . . . . . . Machines | -11 -10 -10 -9 -9 -7 -6 ---------- Run | Yrd Mat Min Mat Min Zio Pro Machines Disabled . | . . . . . . . Max in Single Turn . | . . . . . . . Machines Repaired . | . . . . . . . Machines Dismantled . | . . . . . . . Machines Sabotaged . | . . . . . . . Overloaded Fab Kills . | . . . . . . . Hacking | -11 -10 -10 -9 -9 -7 -6 --------- Run | Yrd Mat Min Mat Min Zio Pro Machines Accessed 2 | . 1 . 1 . . . Terminals 2 | . 1 . 1 . . . Fabricators . | . . . . . . . Repair Stations . | . . . . . . . Recycling Units . | . . . . . . . Scanalyzers . | . . . . . . . Garrison Access . | . . . . . . . Total Hacks 3 | . 2 . 1 . . . Successful 1 | . 1 . . . . . Failed 2 | . 1 . 1 . . . Catastrophic . | . . . . . . . Database Lockouts . | . . . . . . . Manual . | . . . . . . . Terminals 3 | . 2 . 1 . . . Fabricators . | . . . . . . . Repair Stations . | . . . . . . . Recycling Units . | . . . . . . . Scanalyzers . | . . . . . . . Garrison Access . | . . . . . . . Terminal Hacks 1 | . 1 . . . . . Emergency Access Points 1 | . 1 . . . . . Fabricator Hacks . | . . . . . . . Repair Station Hacks . | . . . . . . . Recycling Unit Hacks . | . . . . . . . Scanalyzer . | . . . . . . . Garrison Access Hacks . | . . . . . . . Unauthorized Hacks . | . . . . . . . Terminals . | . . . . . . . Fabricators . | . . . . . . . Repair Stations . | . . . . . . . Recycling Units . | . . . . . . . Scanalyzers . | . . . . . . . Garrison Access . | . . . . . . . Data Cores Recovered . | . . . . . . . Used . | . . . . . . . Hacking Detections 2 | . 1 . 1 . . . Full Trace Events . | . . . . . . . Feedback Events . | . . . . . . . Feedback Blocked . | . . . . . . . Robot Schematics Acquired 3 | . . . . . 3 . Robots Built . | . . . . . . . Authchips . | . . . . . . . Time . | . . . . . . . Total Robot Build Rating . | . . . . . . . Part Schematics Acquired 15 | . . . . . 15 . Parts Built . | . . . . . . . Authchips . | . . . . . . . Time . | . . . . . . . Total Part Build Rating . | . . . . . . . Parts Repaired . | . . . . . . . Time . | . . . . . . . Parts Recycled . | . . . . . . . Recycled Matter . | . . . . . . . Retrieved Matter . | . . . . . . . Retrieved Components . | . . . . . . . Parts Scanalyzed . | . . . . . . . Part Schematics Acquired . | . . . . . . . Parts Damaged . | . . . . . . . Bothacking | -11 -10 -10 -9 -9 -7 -6 ------------ Run | Yrd Mat Min Mat Min Zio Pro Used RIF Installer . | . . . . . . . Robots Hacked . | . . . . . . . Non-combat . | . . . . . . . Combat . | . . . . . . . Robot Hacks Applied . | . . . . . . . Relay Couplers Released . | . . . . . . . Fabnet Peak Effective % . | . . . . . . . Robots Rewired . | . . . . . . . Allies Hacked . | . . . . . . . Hacks Repelled . | . . . . . . . Allies | -11 -10 -10 -9 -9 -7 -6 -------- Run | Yrd Mat Min Mat Min Zio Pro Total Allies . | . . . . . . . Largest Group . | . . . . . . . Highest-Rated Group . | . . . . . . . Highest-Rated Ally . | . . . . . . . Total Orders . | . . . . . . . Ally Attacks . | . . . . . . . Total Damage . | . . . . . . . Kills . | . . . . . . . Allies Corrupted . | . . . . . . . Allies Melted . | . . . . . . . Intel | -11 -10 -10 -9 -9 -7 -6 ------- Run | Yrd Mat Min Mat Min Zio Pro Robot Analysis Total . | . . . . . . . Derelict Logs Recovered 1 | . . 1 . . . . Drone Launches . | . . . . . . . Drone Recoveries . | . . . . . . . Exploration | -11 -10 -10 -9 -9 -7 -6 ------------- Run | Yrd Mat Min Mat Min Zio Pro Turns Passed 2579 | 71 213 116 251 34 800 1094 Spaces Moved 1179 | 38 107 63 134 22 367 448 Core 4 | 3 . . . . . 1 Treads 1175 | 35 107 63 134 22 367 447 Legs . | . . . . . . . Wheels . | . . . . . . . Hover . | . . . . . . . Flight . | . . . . . . . Fastest Speed 50 | 50 160 160 160 160 160 160 Average Speed 197 | 151 160 160 160 160 211 218 Slowest Speed 320 | 160 160 160 160 160 240 320 Overloaded Moves . | . . . . . . . Propulsion Burnouts . | . . . . . . . Robots Hopped . | . . . . . . . Cave-ins Triggered 1 | . . . . . . 1 Exploration Rate (%) 21 | 3 25 16 19 3 37 44 Regions Visited 6 Branch Regions 4 Pre-discovered Areas . | . . . . . . . Known Exits Taken . | . . . . . . . Unknown Exits Taken 6 | 1 1 1 1 1 1 . Scrap Searched 3 | . . . . 1 1 1 Spaces Dug . | . . . . . . . Terrain Destroyed 83 | . . . 1 . . 82 Melee . | . . . . . . . Projectile 4 | . . . 1 . . 3 AOE 79 | . . . . . . 79 Terrain Rammed . | . . . . . . . Walls Destroyed . | . . . . . . . Machines Disabled . | . . . . . . . Actions | -11 -10 -10 -9 -9 -7 -6 --------- Run | Yrd Mat Min Mat Min Zio Pro Total 1345 | 51 129 71 158 21 395 520 Wait 48 | . 6 5 . . 13 24 Move 1173 | 37 106 62 133 21 366 448 Hop . | . . . . . . . Pick Up 32 | 7 4 . 9 . 5 7 Fast Attach . | . . . . . . . Attach 21 | 6 1 . 2 . 2 10 Detach . | . . . . . . . Swap 13 | 1 . . 5 . 3 4 Drop 11 | . . . 3 . 6 2 Fire 45 | . 11 4 6 . . 24 Melee . | . . . . . . . Ram . | . . . . . . . Kick . | . . . . . . . Crush 2 | . 1 . . . . 1 Escape Stasis . | . . . . . . . Rewire . | . . . . . . . Trap . | . . . . . . . Miscellaneous . | . . . . . . . Route ------- -11/Scrapyard -10/Materials -10/Mines -9/Materials -9/Mines -7/Zion -6/Proximity Caves History --------- Turn | Location | Event 7 | -11/Scrapyard | Discovered new exit (range 16) 72 | -11/Scrapyard | Entered Materials 181 | -10/Materials | Discovered new exit (range 7) 285 | -10/Materials | Entered Mines 317 | -10/Mines | Build established: Mutant 341 | -10/Mines | Learned Materials non-interactive machine intel 391 | -10/Mines | Discovered new exit (range 6) 401 | -10/Mines | Entered Materials 401 | -9/Materials | Evolved 2 slots: Utility x2 402 | -9/Materials | Loaded intel: 33 non-interactive machine locations 638 | -9/Materials | Discovered new exit (range 9) 652 | -9/Materials | Entered Mines 653 | -9/Mines | A Derelict revealed a hidden shortcut to a safe place 686 | -9/Mines | Entered Zion 906 | -7/Zion | Found Prototype Device 907 | -7/Zion | Identified Phasing AFG 1137 | -7/Zion | Received a hallucinogenic algorithm 1202 | -7/Zion | Found Prototype Special Weapon 1203 | -7/Zion | Identified RU-N14's Throwing Claymores 1208 | -7/Zion | Found RU-N14's Throwing Claymores 1450 | -7/Zion | Discovered new exit (range 15) 1486 | -7/Zion | Entered Proximity Caves 2046 | -6/Proximity Caves | Crushed by falling debris 2165 | -6/Proximity Caves | Spotted B-75 Beast 2236 | -6/Proximity Caves | Core integrity fell below 50% 2287 | -6/Proximity Caves | Lost 6 parts (2n2u2w) 2545 | -6/Proximity Caves | Core integrity fell below 20% 2580 | -6/Proximity Caves | Destroyed by B-75 Beast with Heavy Plasma Cannon Last Messages --------------- Acquired 33 matter. System corrupted: Lgt. Treads rejected. Dropped Lgt. Ion Engine. Acquired Lgt. Treads. Kinecellerator destroyed. System corrupted: Coil Gun jammed. Slug penetrates Wall. System corrupted: Coil Gun rejected. Slug penetrates B-75 Beast. B-75 Beast suffers critical hit (Destroy). Destroyed Magnetic Acceleration Cannon. Slug penetrates B-75 Beast. Lgt. Treads destroyed. Slug penetrates B-75 Beast. Phasing AFG destroyed. Slug penetrates Wall. Overheating: System interference. Coil Gun temporarily disabled. Lgt. Treads destroyed. Neutrino Core destroyed. Map ----- +----------------------------------------------------+ | ?????????????????????????????????????????????????? | | ?????????????????????????????????????????????????? | | ?#####???????????????????????????????????????????# | | ?# #??????????????????????????????????????????## | | ## #?????????###??????????????????????????????# | | ##???????## ###???????????????????????????## | | ##?????## ##?????###??????????????????# | | ####### ####### ###??????#####?????# | | # # ######## #???### | | ## ## ## #????# # | | ## ##### ## ## #??### | | ####???# ## ### " #??## # | | ##???????### ## #### # | | ##???????# # | | ####??### % ### % * | | #### ### #?#% # | | ## "###########% # # | | ## #??????## # % ## | | #### ####???## # #? | | ####??# ### ##?## #### ### ##? | | ??????# ## ### %" %# ##? | | ##???## ## #;# ## ## """""## | | #??# ### ####; ## ## #" # | | ### #### ###; % ## % # | | ##?# ## [ ###" * | | # ##??# #### @ * #### # | | ## #?### ### ##; ## | | ?# ###### ## ##"" BB ;; | | ?# ##???# ###% " " BB % # # | | ?# #????# #?# #; ####%#"" ;;;; % | | ?#####????# ### ######??####" # ## | | #???####### ###????#####???# #? ## | | #?### ## #????## ###?# #???# "#% % | | #?# #???## ### ##### ###% | | ## ####??## ## ## #?## | | ## ## ##?????# ## ####??##"#" | | ### #####?????## ##??????#### | | #### #?????????# ### #??????????? | | #?### ##?????????## ##?## ## ##??????????? | | #??#####???????????###????###### ##???????????? | | ###??????????????????????????????####????????????? | | ?????????????????????????????????????????????????? | | ?????????????????????????????????????????????????? | | ?????????????????????????????????????????????????? | | ?????????????????????????????????????????????????? | | ?????????????????????????????????????????????????? | | ?????????????????????????????????????????????????? | | ?????????????????????????????????????????????????? | | ?????????????????????????????????????????????????? | | ?????????????????????????????????????????????????? | +----------------------------------------------------+ Best States ------------- Heat Dissipation 38 Energy Generation 19 Energy Capacity 315 Matter Stores 300 Matter Capacity 300 Sight Range 16 Terrain Scan Density 10 Armor Coverage 225 Evasion (%) 40 Recoil Reduction 2 Kinecelleration 30 Item Schematics ----------------- Weapon Cycler | -7/Zion | Archive Plasma Cannon | -7/Zion | Archive Adv. Signal Interpreter | -7/Zion | Archive Adv. Cooling System | -7/Zion | Archive Hvy. Machine Gun | -7/Zion | Archive Kinecellerator | -7/Zion | Archive Fusion Compressor | -7/Zion | Archive Adv. Terrain Scan Processor | -7/Zion | Archive KE Penetrator | -7/Zion | Archive Imp. Field Recycling Unit | -7/Zion | Archive Drone Bay | -7/Zion | Archive Imp. Melee Analysis Suite | -7/Zion | Archive Imp. Heavy Armor Plating | -7/Zion | Archive Spear | -7/Zion | Archive Plasma Rifle | -7/Zion | Archive Robot Schematics ------------------ Y-54 Guardian | -7/Zion | Archive K-01 Serf | -7/Zion | Archive B-36 Bruiser | -7/Zion | Archive Fabricated ------------ Nothing Alien Tech Used ----------------- None Achievements -------------- None Challenges ------------ None Game ------ Seed LayeredCentriumScrapsphere Manual? 0 Play Time 00:19:57 Cumulative 25.1 hours Start 2024.12.04 @ 17:43:45 End 2024.12.04 @ 18:01:13 Sessions 1 Manual Loads 0 Difficulty Rogue Special Mode None Game No. 46 Rogue 46 Adventurer 0 Explorer 0 Win Type - Total 0 Types 0/0/0/0/0/0/0/0/0 Lore% 16 Gallery% 24 Achievement% 19 Wizard Run 0 Options --------- Layout 1 ASCII 0 Keyboard 0 Movement Mouse Keybinds 0 Fullscreen 1 Font 24/Terminus Map View 50x35 Zoom Use 0% Tactical HUD 0 Map Filters NONE Filters NONE Steam 1 RUN: 1e2762e2-594f-4f1f-80d6-d2a848bf7b70